Cogmind - Beta 14 @@@ ROGUE MODE // 2025.03.20 @ 22:09:15 Player: Chair Result: Destroyed by S-10 Pest with Light Assault Rifle Performance ------------- Evolutions (1) 500 Regions Visited (6) 1200 Robots Destroyed (0) 0 Value Destroyed (0) 0 Prototype IDs (25) 500 Alien Tech Used (0) 0 Bonus (521) 521 TOTAL SCORE: 2721 Bonus ------- Pacifist 200 Follower Combat Kills 21 Aligned with FarCom 300 Cogmind --------- Core Integrity 0/400 Matter 300/300 Energy 99/100 System Corruption 0% Temperature Cool (0) Movement Core (50) Location -8/Mines Parts ------- > --- POWER (1) -------- (None) > --- PROPULSION (2) --- (None) > --- UTILITY (4) ------ Modified TNC > --- WEAPON (2) ------- (None) > --- INVENTORY (5) ---- Structural Scanner Improved Terrain Scanner ECM Suite Improved Datajack Mining Laser Peak State ------------ > --- POWER ------------ (None) > --- PROPULSION ------- (None) > --- UTILITY ---------- Structural Scanner Improved Terrain Scanner Modified TNC System Shield > --- WEAPON ----------- (None) > --- INVENTORY -------- Trap Scanner ECM Suite Improved Datajack Mining Laser [Rating: 13] Favorites ----------- Power None Propulsion None Utility System Shield Device Structural Scanner Processor Modified TNC Hackware System Shield Weapon None Build | -11 -10 -10 -9 -9 -9 -8 ------- Run | Yrd Mat Min Mat Min Exi Min Slots Evolved 2 | . . . 2 . . . Power . | . . . . . . . Propulsion . | . . . . . . . Utility 2 | . . . 2 . . . Weapon . | . . . . . . . Parts Attached 5 | . . 1 2 . 1 1 Power . | . . . . . . . Engine . | . . . . . . . Core . | . . . . . . . Reactor . | . . . . . . . Propulsion . | . . . . . . . Treads . | . . . . . . . Leg . | . . . . . . . Wheel . | . . . . . . . Hover . | . . . . . . . Flight . | . . . . . . . Utility 5 | . . 1 2 . 1 1 Device 3 | . . . 2 . . 1 Storage . | . . . . . . . Processor 1 | . . . . . 1 . Hackware 1 | . . 1 . . . . Protection . | . . . . . . . Artifact . | . . . . . . . Weapon . | . . . . . . . Energy Gun . | . . . . . . . Energy Cannon . | . . . . . . . Ballistic Gun . | . . . . . . . Ballistic Cannon . | . . . . . . . Launcher . | . . . . . . . Special Weapon . | . . . . . . . Impact Weapon . | . . . . . . . Slashing Weapon . | . . . . . . . Piercing Weapon . | . . . . . . . Special Melee Weapon . | . . . . . . . Unidentified Prototypes . | . . . . . . . Parts Lost 1 | . . . . . . 1 Power . | . . . . . . . Propulsion . | . . . . . . . Utility 1 | . . . . . . 1 Weapon . | . . . . . . . Highest Loss Streak 1 | . . . . . . 1 To Critical Strikes . | . . . . . . . Average Slot Usage (%) 26 | . . 9 13 22 24 38 Device 11 | . . . 2 11 11 17 Processor 5 | . . . . . 2 11 Hackware 9 | . . 9 11 11 11 9 Peak Build Rating 13 | . . 3 7 7 11 13 Average Rating 7 | . . 1 3 5 6 11 On Entrance 3 | . . . 3 7 5 11 Naked Turns 76 | . 40 36 . . . . Heaviest Build 2 | . . . 2 2 1 2 Greatest Support 3 | 3 3 3 3 3 3 3 Greatest Overweight (x) . | . . . . . . . Average Overweight (x) . | . . . . . . . Largest Inventory Capacity 5 | 5 5 5 5 5 5 5 Average Capacity 5 | 5 5 5 5 5 5 5 Most Carried 5 | . 4 5 5 5 5 5 Average Carried 4 | . 2 4 4 4 5 4 Final Capacity 5 | 5 5 5 5 5 5 5 Final Carried 5 | . 4 5 4 5 5 5 Class Distribution -------------------- 66% | Mutant 33% | Scout Dominant Class ---------------- Mutant | -10/Materials Mutant | -10/Mines Mutant | -9/Materials Mutant | -9/Mines Mutant | -9/Exiles Scout | -8/Mines Resources | -11 -10 -10 -9 -9 -9 -8 ----------- Run | Yrd Mat Min Mat Min Exi Min Matter Collected 250 | 200 . . . 30 . 20 Remotely . | . . . . . . . Salvage Created . | . . . . . . . Parts . | . . . . . . . Haulers Intercepted . | . . . . . . . Recyclers Shooed . | . . . . . . . Parts Field Recycled . | . . . . . . . Retrieved Matter . | . . . . . . . Parts Self-Destructed . | . . . . . . . Prevented . | . . . . . . . Kills | -11 -10 -10 -9 -9 -9 -8 ------- Run | Yrd Mat Min Mat Min Exi Min Combat Hostiles Destroyed . | . . . . . . . Classes Destroyed . | . . . . . . . Best Kill Streak . | . . . . . . . Combat Bots Only . | . . . . . . . Max Kills in Single Turn . | . . . . . . . Gunslinging . | . . . . . . . Exploded . | . . . . . . . Melee . | . . . . . . . Uniques/NPCs Destroyed . | . . . . . . . Combat | -11 -10 -10 -9 -9 -9 -8 -------- Run | Yrd Mat Min Mat Min Exi Min Hostile Shots Fired 83 | . . 27 . 24 . 32 Missed 31 | . . 17 . 4 . 10 Damage Taken 533 | . . 98 . 206 . 229 Core 500 | . . 98 . 193 . 209 Absorbed by Shields . | . . . . . . . Core Remaining (%) 80 | 100 . 60 . . . . Volleys Fired . | . . . . . . . Largest . | . . . . . . . Hottest . | . . . . . . . Shots Fired . | . . . . . . . Gun . | . . . . . . . Cannon . | . . . . . . . Launcher . | . . . . . . . Special . | . . . . . . . Kinetic . | . . . . . . . Thermal . | . . . . . . . Explosive . | . . . . . . . Electromagnetic . | . . . . . . . Robot Hit Streak . | . . . . . . . Robot Miss Streak . | . . . . . . . Penetration Max . | . . . . . . . Secondary Targets . | . . . . . . . Shots Hit Robots . | . . . . . . . Core Hits . | . . . . . . . Critical Kills . | . . . . . . . Critical Parts Destroyed . | . . . . . . . Critical Strikes . | . . . . . . . Melee Attacks . | . . . . . . . Impact . | . . . . . . . Slashing . | . . . . . . . Piercing . | . . . . . . . Sneak Attacks . | . . . . . . . Combat Hostiles . | . . . . . . . Follow-up Attacks . | . . . . . . . Damage Inflicted 37 | . . . . . . 37 Guns . | . . . . . . . Cannons . | . . . . . . . Explosions . | . . . . . . . Melee . | . . . . . . . Ramming 37 | . . . . . . 37 Kinetic . | . . . . . . . Thermal . | . . . . . . . Explosive . | . . . . . . . Electromagnetic . | . . . . . . . Impact . | . . . . . . . Slashing . | . . . . . . . Piercing . | . . . . . . . Highest Corruption . | . . . . . . . Average Corruption . | . . . . . . . Corruption Purged . | . . . . . . . Corruption Blocked . | . . . . . . . Overload Shots . | . . . . . . . Overflow Damage . | . . . . . . . Projectiles . | . . . . . . . Explosions . | . . . . . . . Melee . | . . . . . . . Knockbacks . | . . . . . . . Impact . | . . . . . . . Kinetic . | . . . . . . . Secondary . | . . . . . . . Self-Inflicted Damage 16 | . . . . . . 16 Shots . | . . . . . . . Rammed 7 | . . . . . . 7 Targets Rammed 7 | . . . . . . 7 Kicked . | . . . . . . . Crushed . | . . . . . . . Highest Temperature . | . . . . . . . Average Temperature . | . . . . . . . Received Heat Transfer 99 | . . 36 . 63 . . Siege Activations . | . . . . . . . Robots Corrupted . | . . . . . . . Combat Hostiles . | . . . . . . . Parts Fried . | . . . . . . . Impact Corruptions . | . . . . . . . Robots Melted . | . . . . . . . Combat Hostiles . | . . . . . . . Parts Melted . | . . . . . . . Heat Transferred . | . . . . . . . Parts Sabotaged . | . . . . . . . Parts Stolen . | . . . . . . . Parts Stripped . | . . . . . . . Power Chain Reactions . | . . . . . . . Alert | -11 -10 -10 -9 -9 -9 -8 ------- Run | Yrd Mat Min Mat Min Exi Min Peak Influence 261 | . 7 62 31 261 . 45 Initial 24 | . . 2 24 12 . . Average 37 | . 4 46 24 165 . 3 Maximum Alert Level 1 | . . . . 1 . . Low Security (%) 91 | 100 100 100 100 44 . 100 Level 1 9 | . . . . 55 . . Level 2 . | . . . . . . . Level 3 . | . . . . . . . Level 4 . | . . . . . . . Level 5 . | . . . . . . . High Security . | . . . . . . . Max Security . | . . . . . . . Squads Dispatched 2 | . 1 1 . . . . Investigation 2 | . 1 1 . . . . Extermination . | . . . . . . . Reinforcement . | . . . . . . . Assault . | . . . . . . . Garrison . | . . . . . . . Intercept . | . . . . . . . Searches Triggered . | . . . . . . . Construction Impeded . | . . . . . . . Haulers Reinforced . | . . . . . . . Active Scanning Responses . | . . . . . . . Cargo Convoy Interrupts . | . . . . . . . Stealth | -11 -10 -10 -9 -9 -9 -8 --------- Run | Yrd Mat Min Mat Min Exi Min Distress Signals . | . . . . . . . Communications Jammed . | . . . . . . . Distress Signals . | . . . . . . . Times Spotted 29 | . . 8 . 14 . 7 Peak Tracking Total 10 | . . 5 . 10 . 4 Tactical Retreats 7 | . . 1 . 4 . 2 Traps | -11 -10 -10 -9 -9 -9 -8 ------- Run | Yrd Mat Min Mat Min Exi Min Traps Triggered . | . . . . . . . Indirectly . | . . . . . . . Trap Hack Attempts . | . . . . . . . Triggered . | . . . . . . . Disarmed . | . . . . . . . Reprogrammed . | . . . . . . . Reused . | . . . . . . . Traps Extracted . | . . . . . . . Installed . | . . . . . . . Triggered . | . . . . . . . Machines | -11 -10 -10 -9 -9 -9 -8 ---------- Run | Yrd Mat Min Mat Min Exi Min Machines Disabled . | . . . . . . . Max in Single Turn . | . . . . . . . Machines Repaired . | . . . . . . . Machines Dismantled . | . . . . . . . Machines Sabotaged . | . . . . . . . Overloaded Fab Kills . | . . . . . . . Hacking | -11 -10 -10 -9 -9 -9 -8 --------- Run | Yrd Mat Min Mat Min Exi Min Machines Accessed 4 | . 1 1 1 . 1 . Terminals 2 | . 1 . 1 . . . Fabricators . | . . . . . . . Repair Stations . | . . . . . . . Recycling Units . | . . . . . . . Scanalyzers . | . . . . . . . Garrison Access . | . . . . . . . Total Hacks 12 | . 7 1 3 . 1 . Successful 6 | . 3 1 1 . 1 . Failed 6 | . 4 . 2 . . . Catastrophic 2 | . 1 . 1 . . . Database Lockouts . | . . . . . . . Manual 4 | . . . 3 . 1 . Terminals 10 | . 7 . 3 . . . Fabricators . | . . . . . . . Repair Stations . | . . . . . . . Recycling Units . | . . . . . . . Scanalyzers . | . . . . . . . Garrison Access . | . . . . . . . Terminal Hacks 6 | . 3 1 1 . 1 . Part Schematic 1 | . . . 1 . . . Prototype ID Bank 1 | . 1 . . . . . Open Door 1 | . . 1 . . . . Branch Access Points 1 | . 1 . . . . . Zone Layout 1 | . 1 . . . . . Derelict Proto ID Bank 1 | . . . . . 1 . Fabricator Hacks . | . . . . . . . Repair Station Hacks . | . . . . . . . Recycling Unit Hacks . | . . . . . . . Scanalyzer . | . . . . . . . Garrison Access Hacks . | . . . . . . . Unauthorized Hacks . | . . . . . . . Terminals . | . . . . . . . Fabricators . | . . . . . . . Repair Stations . | . . . . . . . Recycling Units . | . . . . . . . Scanalyzers . | . . . . . . . Garrison Access . | . . . . . . . Data Cores Recovered . | . . . . . . . Used . | . . . . . . . Hacking Detections 2 | . 1 . 1 . . . Full Trace Events 1 | . 1 . . . . . Feedback Events . | . . . . . . . Feedback Blocked . | . . . . . . . Robot Schematics Acquired . | . . . . . . . Robots Built . | . . . . . . . Authchips . | . . . . . . . Time . | . . . . . . . Total Robot Build Rating . | . . . . . . . Part Schematics Acquired 1 | . . . 1 . . . Parts Built . | . . . . . . . Authchips . | . . . . . . . Time . | . . . . . . . Total Part Build Rating . | . . . . . . . Parts Repaired . | . . . . . . . Time . | . . . . . . . Parts Recycled . | . . . . . . . Recycled Matter . | . . . . . . . Retrieved Matter . | . . . . . . . Retrieved Components . | . . . . . . . Parts Scanalyzed . | . . . . . . . Part Schematics Acquired . | . . . . . . . Parts Damaged . | . . . . . . . Bothacking | -11 -10 -10 -9 -9 -9 -8 ------------ Run | Yrd Mat Min Mat Min Exi Min Used RIF Installer . | . . . . . . . Robots Hacked . | . . . . . . . Non-combat . | . . . . . . . Combat . | . . . . . . . Robot Hacks Applied . | . . . . . . . Relay Couplers Released . | . . . . . . . Fabnet Peak Effective % . | . . . . . . . Robots Rewired . | . . . . . . . Allies Hacked . | . . . . . . . Hacks Repelled . | . . . . . . . Allies | -11 -10 -10 -9 -9 -9 -8 -------- Run | Yrd Mat Min Mat Min Exi Min Total Allies 3 | . . . . 3 . . Largest Group 3 | . . . . 3 . . Highest-Rated Group 40 | . . . . 40 . . Highest-Rated Ally 16 | . . . . 16 . . Total Orders . | . . . . . . . Ally Attacks 16 | . . . . 16 . . Total Damage 156 | . . . . 156 . . Kills 4 | . . . . 4 . . Allies Corrupted . | . . . . . . . Allies Melted . | . . . . . . . Intel | -11 -10 -10 -9 -9 -9 -8 ------- Run | Yrd Mat Min Mat Min Exi Min Robot Analysis Total . | . . . . . . . Derelict Logs Recovered . | . . . . . . . Drone Launches . | . . . . . . . Drone Recoveries . | . . . . . . . Exploration | -11 -10 -10 -9 -9 -9 -8 ------------- Run | Yrd Mat Min Mat Min Exi Min Turns Passed 914 | 12 40 92 81 114 214 361 Spaces Moved 1495 | 23 72 174 154 224 424 424 Core 1495 | 23 72 174 154 224 424 424 Treads . | . . . . . . . Legs . | . . . . . . . Wheels . | . . . . . . . Hover . | . . . . . . . Flight . | . . . . . . . Fastest Speed 50 | 50 50 50 50 50 50 50 Average Speed 50 | 50 50 50 50 50 50 50 Slowest Speed 50 | 50 50 50 50 50 50 50 Overloaded Moves . | . . . . . . . Propulsion Burnouts . | . . . . . . . Robots Hopped . | . . . . . . . Cave-ins Triggered . | . . . . . . . Exploration Rate (%) 40 | 3 18 45 17 59 86 55 Regions Visited 6 Branch Regions 4 Pre-discovered Areas . | . . . . . . . Known Exits Taken 1 | . 1 . . . . . Unknown Exits Taken 5 | 1 . 1 1 1 1 . Scrap Searched 4 | . . 1 . 2 . 1 Spaces Dug . | . . . . . . . Terrain Destroyed . | . . . . . . . Melee . | . . . . . . . Projectile . | . . . . . . . AOE . | . . . . . . . Terrain Rammed . | . . . . . . . Walls Destroyed . | . . . . . . . Machines Disabled . | . . . . . . . Actions | -11 -10 -10 -9 -9 -9 -8 --------- Run | Yrd Mat Min Mat Min Exi Min Total 1655 | 22 75 179 156 225 424 574 Wait 141 | . . . 1 1 . 139 Move 1489 | 22 71 173 153 223 423 424 Hop . | . . . . . . . Pick Up 7 | . 4 3 . . . . Fast Attach 3 | . . 1 1 . 1 . Attach 2 | . . . 1 . . 1 Detach 3 | . . . . 1 . 2 Swap . | . . . . . . . Drop 3 | . . 2 . . . 1 Fire . | . . . . . . . Melee . | . . . . . . . Ram 7 | . . . . . . 7 Kick . | . . . . . . . Crush . | . . . . . . . Escape Stasis . | . . . . . . . Rewire . | . . . . . . . Trap . | . . . . . . . Miscellaneous . | . . . . . . . Route ------- -11/Scrapyard -10/Materials -10/Mines -9/Materials -9/Mines (discovered 3 exits: [*Mat x2] / *Exi) -9/Exiles -8/Mines History --------- Turn | Location | Event 4 | -11/Scrapyard | Discovered new exit (range 15) 13 | -11/Scrapyard | Entered Materials 29 | -10/Materials | Identified exit to Mines 53 | -10/Materials | Entered Mines 88 | -10/Mines | Met a Derelict shopkeep closing up shop 138 | -10/Mines | Discovered new exit (range 13) 145 | -10/Mines | Entered Materials 145 | -9/Materials | Evolved 2 slots: Utility x2 217 | -9/Materials | Discovered new exit (range 15) 226 | -9/Materials | Entered Mines 248 | -9/Mines | Discovered new exit (range 11) 260 | -9/Mines | Assisted by bots powering up and referring to "LRC-V3" 309 | -9/Mines | Lost 3 allies 317 | -9/Mines | Build established: Mutant 329 | -9/Mines | Discovered new exit (range 9) 337 | -9/Mines | Deemed a non-threat by the Exiles lab entrance 337 | -9/Mines | Discovered new exit (range 6) 340 | -9/Mines | Entered Exiles 353 | -9/Exiles | Met 8R-AWN 361 | -9/Exiles | Met EX-HEX 384 | -9/Exiles | Met EX-DEC 405 | -9/Exiles | Visited The Gauntlet 459 | -9/Exiles | Met EX-BIN 488 | -9/Exiles | Aligned with FarCom system 489 | -9/Exiles | Given EX-Vault access code 501 | -9/Exiles | Opened EX-Vault 504 | -9/Exiles | Found Modified TNC 515 | -9/Exiles | Warned to stay clear of 0b10 Research branches 549 | -9/Exiles | Discovered new exit (range 11) 554 | -9/Exiles | Left Exiles lab with Modified TNC 554 | -9/Exiles | Entered Mines 846 | -8/Mines | Build established: Scout 873 | -8/Mines | Core integrity fell below 50% 895 | -8/Mines | Core integrity fell below 20% 915 | -8/Mines | Destroyed by S-10 Pest with Light Assault Rifle Last Messages --------------- 00549_ EXIT=FOUND LOCATION=UNKNOWN GOAL=ESCAPE 00554_ Receiving FarCom transmissions... 00618_ Searching scrap... 00618_ Found Arm. Wheel. 00618_ Found 64 Matter. 00619_ Acquired 20 matter. 00624_ T-07 Excavator is excavating. 00863_ Dropped Trap Scanner. 00872_ Slammed into S-10 Pest. 00874_ System Shield destroyed. 00881_ Slammed into S-10 Pest. 00893_ Destabilizing: System interference. 00893_ Modified TNC temporarily disabled. 00894_ Slammed into S-10 Pest. 00894_ Modified TNC broken. 00894_ Destabilizing: Short circuit. 00895_ Slammed into S-10 Pest. 00909_ S-10 Pest destroyed. Map ----- +----------------------------------------------------+ | ??????????????????????????????????????? | | ??????????????????????????????????????? | | ??????????????????????????????????????? | | ??????????????????????????????????????? | | ??????????????????????????????????????? | | ?????????????????????????????????????? | | ? ##????????????????????????????????? | | ##????????????????????????????????? | | ##????????????????????????????###?? | | ##???????????????????????????# ##? | | ##??????????????????????????# #? | | ##??????????????????##?????# #? | | ##????????????????## #????# #? | | ##???????????????## #???# #? | | ##??????####?????# ##??# #? | | ##?????## ##????# ##?# #? | | ? ##?????# ##???# ## #?? | | ??????????# #???#= #???? | | ??????????## ##?##s #????? | | ?????????## ### = ##????? | | ????????## s ##?????? | | ???????## ## ##??????? | | ??????## ##### #???????? | | #????## ##???## #???????? | | ?????# ##?????## ##??????? | | ???#?# ##??????## @ #??????? | | ?????## h##??????## #??????? | | ?#???##### ##??????# ##??????? | | #????????## #####??# ##???????? | | ##???###### %%% #?# #????????? | | ########## ### #?# #???????? | | ##### #### #?## ??????? | | ###?# #??## # ??????? | | % ###??# #???## ## ?????? | | ### ####### #????####? $####????? | | #### ## #?????????? #???????? | | ##?### ## #######?????????? #???????? | | ##???# ## #???????????????? ???????? | | ####??## ## #????????????????? ???????? | | #####?## ## #?????????????????????????? | | ## # ## ##??????????????ss????????? | | ## """ #??????????????s?????????? | | ## """ #####%########## s ?????????? | | ## """ ????#% ?????????? | | ## """?#???# #?????????????? | | ## ?????########## ##?????????????? | | ?# ?????????????????????????????????? | | ?# ? ???#????????????????????????????? | | ??#???????????????????????????????????? | | ?#????????#???????????????????????????? | +----------------------------------------------------+ Best States ------------- Heat Dissipation 28 Energy Generation 5 Energy Capacity 100 Matter Stores 300 Matter Capacity 300 Sight Range 16 Terrain Scan Range 16 Terrain Scan Density 10 Evasion (%) 50 Defensive Hacking 10 Item Schematics ----------------- Terrain Scanner | -9/Materials | Hacked Robot Schematics ------------------ None Fabricated ------------ Nothing Alien Tech Used ----------------- None Achievements -------------- None Challenges ------------ None Game ------ Seed ModifiedRecoilClaw Manual? 0 Play Time 00:14:36 Cumulative 122.2 hours Start 2025.03.20 @ 21:57:45 End 2025.03.20 @ 22:09:15 Sessions 1 Manual Loads 0 Difficulty Rogue Special Mode None Game No. 101 Rogue 101 Adventurer 0 Explorer 0 Win Type - Total 4 Types 4/0/0/0/0/0/0/0/0 Lore% 53 Gallery% 58 Achievement% 48 Wizard Run 0 Options --------- Layout 0 ASCII 0 Keyboard 1 Movement Numpad Keybinds 0 Fullscreen 1 Font 36/Smallcaps Map View 76x50 Zoom Use 0% Tactical HUD 1 Map Filters NONE Filters NONE Steam 1 RUN: 569c10f6-cebd-4c19-aacf-391346e8ac91